bitfinex/quotes_ETHUSD_20240916
["timestamp","ask_amount","ask_price","bid_price","bid_amount"]
[1726445139900,0.042883,2325.4,2325.3,16.45156]
[1726445140246,0.042883,2325.4,2325.3,18.75576]
[1726445140948,6.79852616,2326.0,2325.9,8.59882]
[1726445141178,0.042883,2326.1,2326.0,9.14844]
[1726445142409,0.042883,2326.1,2325.9,4.84937]
[1726445142607,2.4292,2326.0,2325.8,4.29946]
[1726445143424,6.72852,2326.0,2325.4,4.3002]
[1726445143640,0.15036207,2326.1,2325.1,4.18280976]
[1726445143641,2.4292,2325.8,2325.1,4.18280976]
[1726445143929,2.4292,2325.8,2325.4,4.30021]
[1726445145044,2.4292,2325.8,2325.5,0.55]
[1726445146802,2.4292,2325.8,2325.5,4.85014]
[1726445147002,2.4292,2325.8,2325.5,0.55]
[1726445147533,3.11279253,2325.8,2325.5,0.55]
[1726445148414,2.4292,2325.8,2325.6,4.29992]
[1726445149514,2.4292,2325.8,2325.7,9.03258976]
[1726445149704,2.389,2326.0,2325.9,4.29941]
[1726445149905,2.389,2326.0,2325.9,0.55]
[1726445150342,2.389,2326.0,2325.9,4.84941]
[1726445150907,0.042883,2326.1,2326.0,4.84922]
[1726445152528,0.19536203,2326.1,2325.9,4.84939]
[1726445152740,0.19536203,2326.1,2325.9,0.55]
[1726445153141,0.19536203,2326.1,2325.9,4.8494]
[1726445153345,0.19536203,2326.1,2325.9,0.55]
[1726445153543,0.15247903,2326.1,2325.9,0.55]
[1726445153762,0.20023083,2326.1,2325.9,0.55]
[1726445154277,0.20023083,2326.1,2325.9,4.8493]
[1726445154850,0.20023083,2326.1,2326.0,4.84922]
[1726445155856,0.20023083,2326.1,2326.0,12.1860131]
[1726445156360,0.20023083,2326.1,2326.0,12.14844]
[1726445156558,0.20023083,2326.1,2326.0,16.44766]
[1726445156714,0.20023083,2326.1,2326.0,12.14844]
[1726445156913,0.20023083,2326.1,2326.0,16.44766]
[1726445157118,0.20023083,2326.1,2326.0,12.14844]
[1726445157318,0.20023083,2326.1,2326.0,16.44766]
[1726445157734,0.20023083,2326.1,2326.0,18.83706]
[1726445158136,0.0477518,2326.1,2326.0,18.83706]
[1726445159568,0.0477518,2326.1,2326.0,14.53784]
[1726445159925,0.0477518,2326.1,2326.0,18.83706]
[1726445161077,6.79852616,2326.6,2326.0,18.83706]
[1726445161078,6.79852616,2326.6,2326.5,8.5966]
[1726445161225,0.0398021,2326.8,2326.7,4.29793]
[1726445161429,0.0398021,2326.8,2326.7,12.14586]
[1726445161622,0.0398021,2326.8,2326.7,7.84793]
[1726445162163,2.4906,2326.7,2326.5,8.59636]
[1726445162326,2.4906,2326.7,2326.6,4.29811]
[1726445164940,2.4906,2326.7,2326.6,4.84811]
[1726445165936,2.4906,2326.7,2326.6,9.14622]
[1726445166475,2.4906,2326.7,2326.6,4.84811]
[1726445167080,0.0398021,2326.8,2326.7,7.84793]
[1726445167231,0.0398021,2326.8,2326.7,12.03073976]
[1726445167447,0.18794815,2326.8,2326.7,12.03073976]
[1726445167981,0.18794815,2326.8,2326.7,16.32866976]
[1726445168389,0.0398021,2326.8,2326.7,16.32866976]
[1726445168544,0.0398021,2326.8,2326.7,18.64936976]
[1726445168748,0.0398021,2326.8,2326.7,14.46656]
[1726445169056,0.0398021,2326.8,2326.7,18.64936976]
[1726445169474,0.0398021,2326.8,2326.7,16.32866976]
[1726445170054,0.0398021,2326.8,2326.7,20.62659976]
[1726445170263,0.0398021,2326.8,2326.7,16.32866976]
[1726445171292,0.18343771,2326.8,2326.7,16.32866976]
[1726445172795,0.18343771,2326.8,2326.7,7.84793]
[1726445173085,0.0398021,2326.8,2326.6,4.29802]
[1726445173289,0.14353763,2326.7,2326.6,4.29802]
[1726445173601,0.0398021,2326.8,2326.7,8.59586]
[1726445174189,0.0398021,2326.8,2326.7,11.59586]
[1726445174488,0.0398021,2326.8,2326.7,12.14586]
[1726445174916,0.0398021,2326.8,2326.7,16.93735471]
[1726445175058,2.3487,2327.4,2327.3,4.29682]
[1726445175686,2.3885021,2327.6,2327.3,4.29673]
[1726445176248,4.40396473,2327.5,2327.0,3.55]
[1726445176487,2.3487,2327.4,2327.1,4.29715]
[1726445177253,2.3487,2327.4,2327.0,7.29733]
[1726445177469,2.3487,2327.4,2327.1,4.29715]
[1726445178080,2.3487,2327.4,2327.0,3.0]
[1726445178283,2.3487,2327.4,2327.0,4.29737]
[1726445178284,3.02792968,2327.4,2327.0,4.29737]
[1726445178471,2.3487,2327.4,2327.0,4.29737]
[1726445179197,2.3487,2327.4,2327.1,4.29719]
[1726445179374,2.3487,2327.4,2327.2,4.29684]
[1726445180226,2.3487,2327.4,2327.3,4.29682]
[1726445181003,2.3487,2327.4,2327.2,4.29684]
[1726445181174,2.3487,2327.4,2327.2,8.59372]
[1726445181364,2.3487,2327.4,2327.3,4.29682]
[1726445182667,2.49262953,2327.4,2327.2,4.29684]
[1726445183161,2.49262953,2327.4,2327.2,8.59374]
[1726445183568,2.49262953,2327.4,2327.2,8.59375]
[1726445184665,0.14392953,2327.4,2327.3,9.14364]
[1726445184867,2.4415021,2327.6,2327.4,4.29654]
[1726445185282,0.0398021,2327.6,2327.5,4.29645]
[1726445185481,0.0398021,2327.6,2327.4,4.2965]
[1726445186370,0.0398021,2327.6,2327.5,4.29645]
[1726445186598,2.3571231,2327.8,2327.4,4.2965]
[1726445186778,2.3571231,2327.8,2327.3,0.55]
[1726445186779,2.3571231,2327.8,2327.6,4.29616]
[1726445186981,2.3571231,2327.8,2327.6,8.59231]
[1726445187179,0.4496756,2328.0,2327.8,4.29587]
[1726445187370,0.0398021,2328.3,2327.8,4.2958]
[1726445187572,0.0398021,2328.3,2327.9,4.29566]
[1726445187818,0.0398021,2328.3,2327.8,4.33316552]
[1726445188113,0.0090116,2328.3,2328.0,4.29552]
[1726445188772,0.0090116,2328.3,2327.9,0.55]
[1726445189000,0.0090116,2328.3,2327.9,4.84571]
[1726445189174,0.0090116,2328.3,2328.1,0.55]
[1726445189468,0.0090116,2328.3,2328.1,4.84533]
[1726445191444,0.0090116,2328.3,2328.0,4.29543]
[1726445191751,0.0090116,2328.3,2328.0,0.55]
[1726445191943,0.0090116,2328.3,2327.7,4.29599]
[1726445191944,2.382,2328.2,2327.7,4.29599]
[1726445192240,6.67717,2328.2,2327.8,0.55]
[1726445192601,6.67717,2328.2,2327.7,4.29599]
[1726445192602,2.48938667,2328.1,2327.4,4.29653]
[1726445192838,2.48938667,2328.1,2327.3,4.29669]
[1726445192839,4.2959,2327.8,2327.3,4.29669]
[1726445193014,2.317,2327.7,2327.3,4.29669]
[1726445193224,2.317,2327.7,2327.0,6.47870976]
[1726445193225,4.40378194,2327.6,2327.0,4.29727]
[1726445193618,8.70021194,2327.6,2327.0,4.29727]
[1726445193816,9.54681927,2327.6,2327.0,4.29727]
[1726445194013,5.25040927,2327.6,2327.0,4.29727]
[1726445194551,9.54678927,2327.6,2327.0,4.29727]
[1726445194850,9.54678927,2327.6,2326.1,0.89865319]
[1726445194851,4.29803,2326.7,2326.1,0.89865319]
[1726445195146,2.317,2326.9,2326.1,4.29893]
[1726445195147,0.10745481,2326.8,2326.1,4.29893]
[1726445195301,2.317,2326.4,2325.9,4.29928]
[1726445195500,2.317,2326.4,2325.9,8.59855]
[1726445195758,2.317,2326.2,2325.4,0.0380861]
[1726445196048,2.317,2326.2,2325.5,4.30008]
[1726445196049,4.40657773,2326.1,2325.5,4.30008]
[1726445196213,4.29911,2326.1,2325.5,4.30004]
[1726445196401,4.29924,2326.0,2325.5,4.30004]
[1726445196802,4.29924,2326.0,2325.4,0.0380861]
[1726445197116,6.61594,2326.2,2325.5,4.30011]
[1726445197317,6.61594,2326.2,2325.6,4.29984]
[1726445197542,0.14350014,2326.1,2325.7,4.29973]
[1726445198598,0.14350014,2326.1,2325.8,0.55]
[1726445200309,0.14350014,2326.1,2325.8,4.84948]
[1726445200506,0.14350014,2326.1,2326.0,0.55]
[1726445201144,0.14350014,2326.1,2325.8,0.55]
[1726445201452,0.14350014,2326.1,2325.7,3.0]
[1726445201453,0.25098314,2326.1,2325.7,3.0]
[1726445201607,2.2739,2325.8,2325.4,3.0380861]
[1726445201808,2.2739,2326.0,2325.5,4.30003]
[1726445202017,0.1435921,2325.7,2325.5,4.30003]
[1726445202218,2.2739,2326.0,2325.5,4.30003]
[1726445202426,0.1435921,2325.6,2325.5,11.60018]
[1726445202617,2.2739,2326.0,2325.8,4.29959]
[1726445202913,0.1435921,2325.9,2325.8,8.59907]
[1726445203113,6.79852616,2326.2,2325.9,0.55]
[1726445203421,0.14202408,2326.1,2325.9,0.55]
[1726445203804,2.2717,2326.3,2326.0,4.29922]
[1726445204007,0.14202408,2326.0,2325.9,0.55]
[1726445204227,2.2717,2326.3,2325.9,4.8494]
[1726445204427,0.14202408,2326.0,2325.9,4.8494]
[1726445204614,2.2717,2326.3,2325.9,4.8494]
[1726445204821,0.14202408,2326.0,2325.9,4.8494]
[1726445205014,2.2717,2326.3,2325.9,4.8494]
[1726445205220,0.14202408,2326.0,2325.9,4.8494]
[1726445205416,2.2717,2326.3,2325.9,4.8494]
[1726445205705,2.2717,2326.3,2325.9,0.55]
[1726445205908,0.14202408,2326.2,2325.9,0.55]
[1726445206148,2.2717,2326.3,2325.9,0.55]
[1726445206645,6.62755,2326.1,2325.5,3.0]
[1726445206846,0.10749547,2326.0,2325.4,4.3382461]
[1726445207156,4.44160895,2325.9,2325.4,4.3382461]
[1726445207607,4.44160895,2325.9,2325.4,0.0380861]
[1726445207608,0.10749832,2325.8,2325.4,0.0380861]
[1726445207808,2.4191,2325.7,2325.4,0.0380861]
[1726445208058,2.56115473,2325.7,2325.4,0.0380861]
[1726445209041,2.56115473,2325.7,2325.5,0.55]
[1726445212350,6.79852616,2326.4,2325.6,8.12299891]
[1726445212515,6.79852616,2326.4,2326.3,14.62184]
[1726445212710,0.45019918,2326.8,2326.7,4.84793]
[1726445212911,2.3465,2327.0,2326.8,0.55]
[1726445213154,2.4401,2327.4,2326.8,4.84764]
[1726445213313,2.4401,2327.4,2327.1,0.55]
[1726445213951,2.4401,2327.4,2326.9,0.55]
[1726445214436,2.4401,2327.4,2326.9,4.84746]
[1726445215929,6.73676,2327.4,2326.9,0.55]
[1726445216130,0.76913689,2327.3,2326.9,0.55]
[1726445216330,0.10744072,2327.2,2326.9,0.55]
[1726445217437,0.10744072,2327.2,2326.7,0.55]
[1726445217631,2.4401,2327.1,2326.7,0.55]
[1726445217834,2.54754667,2327.1,2326.7,4.84776]
[1726445218741,2.54754667,2327.1,2326.7,0.55]
[1726445219328,2.54754667,2327.1,2326.8,4.29773]
[1726445221382,2.54754667,2327.1,2326.7,4.84783]
[1726445223174,2.54754667,2327.1,2326.7,4.29783]
[1726445223941,0.10744667,2327.1,2326.7,4.29783]
[1726445224179,2.3582,2327.4,2327.1,4.29718]
[1726445224845,2.3582,2327.4,2327.1,4.29707]
[1726445225448,2.3582,2327.8,2327.3,0.55]
[1726445225675,2.3582,2327.8,2327.3,4.84671]
[1726445226345,4.40351219,2327.7,2327.3,0.55]
[1726445226553,2.3829,2327.5,2327.1,4.29707]
[1726445226777,6.78688654,2327.5,2327.0,3.55]
[1726445227485,6.78688654,2327.5,2327.1,4.29718]
[1726445227486,2.49032654,2327.5,2327.1,4.29718]
[1726445227688,0.13441885,2327.4,2327.1,4.29718]
[1726445229275,0.13441885,2327.4,2327.0,3.55]
[1726445229548,1.00158742,2327.4,2326.9,4.29741]
[1726445229757,2.3829,2327.3,2326.9,4.29741]
[1726445229947,2.3829,2327.3,2326.9,8.59487]
[1726445230160,0.13437585,2327.2,2327.0,4.29735]
[1726445230356,2.3829,2327.3,2326.8,4.15849792]
[1726445230563,0.13437585,2327.2,2326.9,4.84754]
[1726445231053,2.3829,2327.3,2327.0,4.29735]
[1726445231251,0.13437585,2327.1,2327.0,4.29735]
[1726445231485,0.10742791,2327.4,2327.0,4.29735]
[1726445231784,0.10742791,2327.4,2326.9,9.14491]
[1726445231985,0.13437585,2327.3,2326.9,4.84745]
[1726445232791,0.13437585,2327.3,2326.9,0.55]
[1726445233007,0.13437585,2327.3,2326.9,4.29756]
[1726445233155,1.25616723,2327.3,2326.9,4.29756]
[1726445233353,0.10743349,2327.2,2326.9,4.29756]
[1726445233695,0.10743355,2327.2,2326.8,3.0]
[1726445233896,0.13437585,2327.1,2326.7,4.29781]
[1726445234099,4.43158585,2327.1,2326.6,4.29809]
[1726445234279,0.13437585,2327.1,2326.7,4.29791]
[1726445234447,0.83065779,2327.1,2326.7,4.29791]
[1726445235162,0.13437585,2327.1,2326.9,4.29742]
[1726445235359,0.13437585,2327.1,2327.0,0.55]
[1726445235604,2.4238,2327.4,2327.0,0.55]
[1726445235802,0.13413623,2327.1,2327.0,0.55]
[1726445235972,3.10657079,2327.4,2327.0,0.55]
[1726445236310,0.13413623,2327.1,2327.0,0.55]
[1726445236497,4.29686,2327.3,2326.8,0.55]
[1726445236709,0.13413623,2327.1,2326.8,4.84774]
[1726445237006,0.13413623,2327.0,2326.9,4.29756]
[1726445237312,0.13413623,2327.0,2326.5,3.0]
[1726445237313,2.4238,2326.9,2326.5,7.29815]
[1726445237477,2.4238,2326.9,2326.6,4.29794]
[1726445237677,0.13413623,2326.8,2326.7,4.29793]
[1726445238705,0.13413623,2326.8,2326.7,4.84793]
[1726445239106,2.2749,2327.1,2326.7,4.84793]
[1726445239603,0.13395803,2327.0,2326.7,4.84793]
[1726445240486,0.13395803,2327.0,2326.7,0.55]
[1726445240802,0.13395803,2327.0,2326.6,4.84799]
[1726445241002,0.13395803,2327.0,2326.8,4.29771]
[1726445241198,0.13395803,2327.0,2326.9,0.55]
[1726445243218,0.13395803,2327.0,2326.8,0.55]
[1726445243373,0.13395803,2327.0,2326.8,4.84772]
[1726445243578,0.13395803,2327.0,2326.9,0.55]
[1726445245676,0.13395803,2327.0,2326.8,0.55]
[1726445246816,0.13395803,2327.0,2326.8,4.29772]
[1726445248184,0.13395803,2327.0,2326.9,4.29756]
[1726445248490,0.13395803,2327.0,2326.8,4.29772]
[1726445248491,2.3895,2327.3,2326.8,4.29772]
[1726445248693,6.79377773,2327.3,2326.8,4.29772]
[1726445248904,0.13395803,2327.2,2326.8,4.29772]
[1726445249101,7.94781399,2327.3,2326.8,4.29772]
[1726445249320,6.79377773,2327.3,2326.8,4.29772]
[1726445249518,0.13397033,2327.2,2326.8,4.29772]
[1726445249884,0.13397033,2327.1,2326.8,4.29772]
[1726445250080,6.79377773,2327.3,2326.8,4.29772]
[1726445250285,0.13397033,2327.2,2326.8,4.29772]
[1726445250491,6.79377773,2327.3,2326.8,8.59537]
[1726445250696,0.13397033,2327.2,2326.8,4.29765]
[1726445250897,2.3895,2327.3,2326.9,4.29746]
[1726445251195,0.13397033,2327.2,2326.9,4.29746]
[1726445251613,6.68632,2327.3,2326.8,4.29765]
[1726445251907,0.13397033,2327.1,2326.8,4.29765]
[1726445252097,0.13397033,2327.0,2326.8,4.29765]
[1726445252298,0.68201503,2327.2,2326.8,4.29765]
[1726445252519,0.13397033,2327.1,2326.8,4.29765]
[1726445253523,0.13397033,2327.1,2326.7,4.84788]
[1726445253743,0.13397033,2327.1,2326.8,4.29774]
[1726445255033,10.98325,2327.3,2326.8,4.29774]
[1726445255202,0.13397033,2327.0,2326.8,4.29774]
[1726445255400,7.84035827,2327.3,2326.8,4.29774]
[1726445255609,0.13397033,2326.9,2326.8,4.84774]
[1726445255813,6.68632,2327.3,2326.8,4.29774]
[1726445256082,6.68632,2327.3,2326.8,4.84774]
[1726445256289,0.13397033,2327.2,2326.7,4.84793]
[1726445256488,4.43101033,2327.2,2326.7,4.84793]
[1726445256813,1.37185076,2327.2,2326.7,4.84793]
[1726445258414,2.2724093,2327.2,2326.7,6.14674554]
[1726445258592,2.2724093,2327.2,2326.7,4.84793]
[1726445259024,2.13843897,2327.2,2326.7,4.84793]
[1726445259323,0.90055854,2327.1,2326.7,4.84793]
[1726445259528,1.03452887,2327.1,2326.7,4.84793]
[1726445260530,0.13397033,2327.1,2326.7,4.84793]
[1726445260736,5.33174887,2327.1,2326.7,0.55]
[1726445260888,5.33174887,2327.1,2326.6,1.29881554]
[1726445260889,2.4032,2326.9,2326.6,1.29881554]
[1726445261088,2.4032,2326.9,2326.6,0.55]
[1726445261089,3.61718566,2326.9,2326.6,0.55]
[1726445261367,0.13402564,2326.8,2326.6,0.55]
[1726445263534,5.30547568,2327.0,2326.6,0.55]
[1726445263701,0.13392731,2326.9,2326.6,0.55]
[1726445264238,0.13392731,2326.9,2326.5,0.55]
[1726445265818,0.13392731,2326.9,2326.5,4.84827]
[1726445267849,0.13392731,2326.9,2326.5,0.55]
[1726445268933,0.13392731,2326.9,2326.6,0.86238796]
[1726445270338,0.13392731,2326.9,2326.5,5.29931939]
[1726445270556,0.13392731,2326.9,2326.5,4.84829]
[1726445271764,0.13392731,2326.9,2326.6,0.86145289]
[1726445271969,7.80000559,2327.1,2326.6,0.86145289]
[1726445272129,0.1337798,2327.0,2326.8,4.29765]
[1726445272675,0.90055854,2327.2,2326.8,4.29765]
[1726445273054,0.1337798,2327.1,2326.8,4.29765]
[1726445273348,0.1337798,2327.1,2327.0,12.83741471]
[1726445273663,6.66141,2327.2,2327.0,2.15515761]
[1726445273832,6.66141,2327.2,2326.8,0.55]
[1726445273833,0.1337798,2327.1,2326.8,0.55]
[1726445274031,0.1337798,2327.1,2326.7,1.29354434]
[1726445274032,5.33159834,2327.1,2326.7,1.29354434]
[1726445274349,1.03433834,2327.1,2326.7,4.29776]
[1726445274530,1.03433834,2327.1,2326.7,5.59130434]
[1726445274966,1.03433834,2327.1,2326.8,4.29774]
[1726445275369,1.03433834,2327.1,2326.9,0.55]
[1726445276663,1.03433834,2327.1,2326.8,0.55]
[1726445278776,0.90055854,2327.0,2326.8,0.55]
[1726445279071,0.90055854,2327.1,2326.8,0.55]
[1726445279275,0.1337798,2326.9,2326.8,0.55]
[1726445279436,0.90055854,2327.1,2326.8,0.55]
[1726445279647,0.1337798,2326.9,2326.7,1.85042293]
[1726445279848,0.90055854,2327.1,2326.7,1.85042293]
[1726445280042,0.1337798,2326.8,2326.7,6.14834293]
[1726445280386,0.1337798,2326.8,2326.7,7.01529043]
[1726445280539,0.1337798,2326.8,2326.7,3.16834905]
[1726445280738,0.1337798,2326.8,2326.7,1.41698407]
[1726445281151,5.30529522,2327.1,2326.7,2.717407]
[1726445281471,5.30529522,2327.1,2326.7,0.55]
[1726445281472,0.90055854,2327.0,2326.7,0.55]
[1726445281633,1.03433834,2327.0,2326.7,0.55]
[1726445281839,5.33172834,2327.0,2326.7,0.55]
[1726445282039,5.33172834,2327.0,2326.7,1.41697275]
[1726445282241,1.03433834,2327.0,2326.7,0.55]
[1726445282897,4.29776,2326.8,2326.5,1.75157912]
[1726445283044,4.40521827,2326.8,2326.5,1.30057907]
[1726445283239,4.40538834,2326.7,2326.5,1.30057907]
[1726445283551,0.1337798,2326.7,2326.5,1.30057907]
[1726445283928,2.4557,2326.1,2325.8,0.89865319]
[1726445284050,2.4557,2326.1,2325.7,2.19953594]
[1726445284051,5.08219301,2326.0,2325.7,2.19953594]
[1726445284255,1.70962913,2326.0,2325.7,0.89865319]
[1726445284468,0.10749511,2325.9,2325.6,0.025966]
[1726445284890,4.43276649,2325.8,2325.6,0.025966]
[1726445285098,2.47750315,2325.7,2325.6,0.025966]
[1726445285295,2.4775031,2325.7,2325.6,0.025966]
[1726445285588,11.21020343,2325.7,2325.6,0.025966]
[1726445285876,12.11071384,2325.7,2325.6,0.025966]
[1726445286081,14.3764651,2325.7,2325.6,0.025966]
[1726445286295,14.82672031,2325.7,2325.6,0.025966]
[1726445286452,14.37247104,2325.7,2325.6,0.025966]
[1726445286863,13.47595469,2325.7,2325.6,0.025966]
[1726445288298,9.17617469,2325.7,2325.6,0.025966]
[1726445288466,6.80292033,2325.7,2325.6,0.025966]
[1726445288665,6.91043456,2325.7,2325.6,0.025966]
[1726445290596,16.20876189,2325.7,2325.6,0.025966]
[1726445290765,13.83876189,2325.7,2325.6,0.025966]
[1726445290968,16.15956189,2325.7,2325.6,0.025966]
[1726445291183,18.3294658,2325.7,2325.6,0.025966]
[1726445291896,21.3294658,2325.7,2325.6,0.025966]
[1726445292357,17.0296858,2325.7,2325.6,0.025966]
[1726445292560,9.03113847,2325.7,2325.6,0.025966]
[1726445292795,6.75372033,2325.7,2325.6,0.025966]
[1726445292971,6.86123684,2325.7,2325.6,0.025966]
[1726445296870,0.13314033,2325.7,2325.6,0.025966]
[1726445297406,2.456,2325.9,2325.6,0.025966]
[1726445298062,0.13165165,2325.8,2325.6,0.025966]
[1726445298403,0.10751038,2325.7,2325.6,0.025966]
[1726445298962,0.23916203,2325.7,2325.6,0.025966]
[1726445299287,5.23770936,2325.7,2325.6,0.025966]
[1726445299499,16.17046936,2325.7,2325.6,0.025966]
[1726445301693,19.17046936,2325.7,2325.6,0.025966]
[1726445301899,21.63149264,2325.7,2325.6,0.025966]
[1726445307096,4.53894203,2325.7,2325.6,0.025966]
[1726445307303,8.83872203,2325.7,2325.6,0.025966]
[1726445307602,16.23406936,2325.7,2325.6,0.025966]
[1726445309535,23.53384936,2325.7,2325.6,0.025966]
[1726445312807,23.98427972,2325.7,2325.6,0.025966]
[1726445313006,26.49672103,2325.7,2325.6,0.025966]
[1726445321912,26.49672103,2325.7,2325.6,2.317666]
[1726445321913,0.58208201,2325.7,2325.6,2.317666]
[1726445322112,9.28914902,2325.7,2325.6,2.317666]
[1726445322357,9.28914902,2325.7,2325.6,0.025966]
[1726445322835,11.54544902,2325.7,2325.6,0.025966]
[1726445323036,17.23040323,2325.7,2325.6,0.025966]
[1726445323645,20.23040323,2325.7,2325.6,0.025966]
[1726445327515,26.33120406,2325.7,2325.6,0.025966]
[1726445327726,29.37996323,2325.7,2325.6,0.025966]
[1726445328562,30.89648752,2325.7,2325.6,0.025966]
[1726445328936,33.20528445,2325.7,2325.6,0.025966]
[1726445329496,36.3404741,2325.7,2325.6,0.025966]
[1726445329979,44.03630707,2325.7,2325.6,0.025966]
[1726445330280,44.03630707,2325.7,2325.0,0.0384116]
[1726445330281,23.31488495,2325.1,2325.0,0.0384116]
[1726445330428,25.55666412,2325.1,2325.0,0.0384116]
[1726445330633,23.44183462,2325.1,2325.0,0.0384116]
[1726445330831,27.74272462,2325.1,2325.0,0.0384116]
[1726445331075,27.74272462,2325.1,2324.3,2.4978116]
[1726445331076,8.60436,2324.4,2324.3,0.0384116]
[1726445331236,32.5135499,2324.4,2324.3,0.0384116]
[1726445331566,25.44712989,2324.4,2324.3,0.0384116]
[1726445331781,28.33831957,2324.4,2324.3,0.0384116]
[1726445331948,31.4411157,2324.4,2324.3,0.0384116]
[1726445332576,28.67367399,2324.4,2324.3,0.0384116]
[1726445332730,33.67598894,2324.4,2324.3,0.0384116]
[1726445332930,37.97816894,2324.4,2324.3,0.0384116]
[1726445333132,37.97814696,2324.4,2324.3,0.0384116]
[1726445333562,27.77855645,2324.4,2324.3,0.0384116]
[1726445334084,28.22508405,2324.4,2324.3,0.0384116]
[1726445334533,27.77767885,2324.4,2324.3,0.0384116]
[1726445335278,27.33136827,2324.4,2324.3,0.0384116]
[1726445336176,24.13860075,2324.4,2324.3,0.0384116]
[1726445339072,26.39200075,2324.4,2324.3,0.0384116]
[1726445339269,31.58674827,2324.4,2324.3,0.0384116]
[1726445339431,27.28456827,2324.4,2324.3,0.0384116]
[1726445339629,37.13906322,2324.4,2324.3,0.0384116]
[1726445340438,37.13906322,2324.4,2323.6,0.0384116]
[1726445340439,13.60927495,2323.7,2323.6,0.0384116]
[1726445340639,21.03767761,2323.7,2323.6,0.0384116]
[1726445341267,27.64515761,2323.7,2323.6,0.0384116]
[1726445341462,32.50693758,2323.7,2323.6,0.0384116]
[1726445341680,34.50693758,2323.7,2323.6,0.0384116]
[1726445341835,39.07169214,2323.7,2323.6,0.0384116]
[1726445342038,39.07169214,2323.7,2322.9,0.0384116]
[1726445342039,15.25021,2323.0,2322.9,0.0384116]
[1726445342261,20.38544449,2323.0,2322.9,0.0384116]
[1726445342735,23.38544449,2323.0,2322.9,0.0384116]
[1726445342937,26.22505043,2323.0,2322.9,0.0384116]
[1726445343543,26.22505043,2323.0,2322.1,2.3603]
[1726445343544,4.30626,2322.2,2322.1,2.3603]
[1726445343873,4.30626,2322.2,2322.1,2.4207696]
[1726445344109,0.12461957,2322.2,2322.1,2.4207696]
[1726445344603,4.41375984,2322.3,2322.1,2.4207696]
[1726445344807,0.12461957,2322.2,2322.1,2.4207696]
[1726445345104,4.30573,2322.5,2322.1,2.4207696]
[1726445345105,8.71924904,2322.5,2322.1,2.4207696]
[1726445345257,0.12405633,2322.2,2322.1,2.4207696]
[1726445345457,4.41339904,2322.5,2322.1,2.4207696]
[1726445345674,4.41339904,2322.5,2321.6,9.36414302]
[1726445345675,4.30718,2321.7,2321.6,2.4093381]
[1726445345901,4.43122395,2321.7,2321.6,2.4093381]
[1726445346114,4.53891877,2321.7,2321.6,0.0462381]
[1726445347076,0.23174664,2321.7,2321.6,0.0462381]
[1726445347395,0.23174664,2321.7,2321.6,2.4049381]
[1726445347733,0.12404395,2321.7,2321.6,2.4049381]
[1726445348201,6.79852616,2322.3,2321.7,2.3269]
[1726445348367,11.10417616,2322.6,2321.7,2.3269]
[1726445348561,0.45042433,2322.4,2321.9,4.3068]
[1726445348761,0.10767085,2322.3,2322.0,2.3269]
[1726445349199,4.75631433,2322.4,2322.0,2.3269]
[1726445349700,0.10766952,2322.3,2322.0,2.3269]
[1726445351459,4.75631433,2322.4,2322.0,2.3269]
[1726445351682,4.86398408,2322.4,2322.0,2.3269]
[1726445352822,0.55809408,2322.4,2322.0,2.3269]
[1726445353228,4.86400408,2322.4,2322.0,2.3269]
[1726445354218,0.45042433,2322.4,2322.1,4.30633]
[1726445354387,4.30513,2322.9,2322.4,2.2911]
[1726445354584,4.75550162,2322.9,2322.4,2.2911]
[1726445354901,4.75546162,2322.9,2322.4,2.2911]
[1726445355099,0.45037162,2322.9,2322.4,2.2911]
[1726445355441,9.31494492,2323.3,2322.4,2.2911]
[1726445355442,4.30432,2323.3,2322.8,2.2911]
[1726445355600,4.30432,2323.3,2322.8,6.59624]
[1726445355926,4.41206146,2323.2,2322.8,2.2911]
[1726445356145,0.10763146,2323.2,2322.8,2.2911]
[1726445356439,0.55795241,2323.4,2323.0,2.2911]
[1726445356797,4.4191847,2323.3,2323.0,2.2911]
[1726445357013,0.1149447,2323.3,2323.0,2.2911]
[1726445358193,0.1149447,2323.3,2323.0,6.59571]
[1726445358433,0.1149447,2323.3,2323.1,2.2717]
[1726445358734,4.30358,2323.7,2323.1,2.2717]
[1726445358735,4.75391731,2323.7,2323.1,2.2717]
[1726445358893,0.1149447,2323.2,2323.1,2.2717]
[1726445359137,4.75391731,2323.7,2323.1,2.2717]
[1726445359327,0.1149447,2323.2,2323.1,2.2717]
[1726445359725,4.41139763,2323.6,2323.1,2.2717]
[1726445359983,0.1149447,2323.2,2323.1,2.2717]
[1726445360134,4.41139763,2323.6,2323.1,2.2717]
[1726445360333,0.1149447,2323.2,2323.1,2.2717]
[1726445360535,4.41139763,2323.6,2323.1,2.2717]
[1726445360764,0.1149447,2323.2,2323.1,2.2717]
[1726445361174,0.10761719,2323.4,2323.1,2.2717]
[1726445361685,0.10761719,2323.4,2322.6,2.4109]
[1726445361686,0.1149447,2323.3,2322.6,2.4109]
[1726445361969,4.30461,2323.1,2322.6,2.4109]
[1726445362273,0.10763779,2323.0,2322.6,6.7164]
[1726445362459,0.54886257,2323.0,2322.6,2.4109]
[1726445362772,0.1149447,2322.9,2322.6,2.4109]
[1726445362975,0.22258252,2322.9,2322.6,2.4109]
[1726445364657,4.30526,2322.8,2322.6,2.4109]
[1726445364862,0.56042664,2322.7,2322.3,2.3518]
[1726445365381,0.1149447,2322.6,2322.3,2.3518]
[1726445365573,4.30589,2322.4,2322.3,2.3518]
[1726445365778,0.10765927,2322.5,2322.3,2.3518]
[1726445365982,4.41345927,2322.5,2322.3,2.3518]
[1726445366134,0.1149447,2322.4,2322.3,2.3518]
[1726445366487,5.3042401,2322.4,2322.3,2.3518]
[1726445367702,0.9983501,2322.4,2322.3,2.3518]
[1726445368209,0.9983501,2322.4,2321.9,4.30671]
[1726445368210,5.3042401,2322.4,2321.7,2.2808]
[1726445368386,5.3042401,2322.4,2321.8,3.0]
[1726445368387,4.30627,2322.2,2321.8,3.0]
[1726445368583,4.41393668,2322.2,2321.7,6.58786]
[1726445368786,0.11533698,2322.1,2321.7,2.2808]